bitfinex-derivatives/quotes_ETHF0:USTF0_20240905
["timestamp","ask_amount","ask_price","bid_price","bid_amount"]
[1725545573775,0.00626501,2391.0,2390.9,0.6155]
[1725545574269,0.00626501,2391.0,2390.9,0.81989889]
[1725545574871,0.00626501,2391.0,2390.9,0.6155]
[1725545575169,4.18866501,2391.0,2390.6,0.41832]
[1725545575380,0.00626501,2391.0,2390.9,0.6155]
[1725545577765,0.00626501,2391.0,2390.8,0.41828]
[1725545577971,0.00626501,2391.0,2390.9,0.6155]
[1725545579479,14.19866501,2391.0,2390.6,3.2078]
[1725545579782,4.01626501,2391.0,2390.9,0.6155]
[1725545580481,0.00626501,2391.0,2390.9,0.6155]
[1725545580777,0.00626501,2391.0,2390.9,1.03377]
[1725545581077,0.00626501,2391.0,2390.9,0.6155]
[1725545582586,0.00626501,2391.0,2390.9,1.24091267]
[1725545582879,0.00626501,2391.0,2390.9,4.44871267]
[1725545583178,4.01,2391.7,2390.9,7.25282267]
[1725545583375,3.2078,2391.9,2391.6,0.6155]
[1725545583570,3.2078,2391.9,2391.8,0.6155]
[1725545583777,4.01,2392.0,2391.8,0.6155]
[1725545583977,40.93896,2392.2,2391.9,1.03359]
[1725545584172,40.93896,2392.2,2392.1,0.6155]
[1725545584378,44.14676,2392.2,2392.1,0.6155]
[1725545585383,44.14676,2392.2,2391.8,0.00626501]
[1725545585384,49.37187,2392.2,2391.8,0.00626501]
[1725545585581,3.2078,2391.9,2391.8,0.00626501]
[1725545585882,3.2078,2391.9,2391.0,2.3102]
[1725545585883,3.2078,2391.9,2390.7,3.2078]
[1725545586080,4.1808,2392.1,2390.0,0.2]
[1725545586081,4.01,2391.3,2391.2,0.6155]
[1725545586284,4.01,2391.3,2390.7,3.2078]
[1725545586587,4.01,2391.3,2391.2,0.6155]
[1725545586889,7.63601,2391.3,2391.0,0.6155]
[1725545587179,4.01,2391.1,2390.8,0.6155]
[1725545587380,3.2078,2391.0,2390.8,0.6155]
[1725545587884,4.1824,2390.9,2390.3,2.1862]
[1725545588081,4.01,2390.7,2390.4,0.6155]
[1725545588584,3.2078,2390.5,2390.4,0.6155]
[1725545588972,7.80934,2390.5,2390.0,0.2]
[1725545589176,4.01,2390.3,2390.2,0.6155]
[1725545591582,6.1772,2391.0,2390.5,0.41832]
[1725545591778,6.1772,2391.0,2390.2,9.8233]
[1725545591779,6.1772,2391.0,2390.6,0.6155]
[1725545591977,6.1772,2391.0,2389.5,0.4184]
[1725545591978,3.2078,2390.5,2389.7,4.456]
[1725545592185,3.2078,2389.8,2389.7,4.456]
[1725545592481,7.3926,2389.8,2389.7,4.456]
[1725545592881,13.3926,2389.8,2388.1,4.2547]
[1725545593079,4.43470501,2390.0,2388.1,4.2547]
[1725545593080,3.2078,2389.4,2389.0,3.2078]
[1725545593276,3.2078,2389.4,2389.1,2.1961]
[1725545593488,4.01,2389.6,2389.1,2.40675623]
[1725545593881,3.2078,2389.5,2389.1,2.40675623]
[1725545594085,3.2078,2389.6,2389.2,0.41857]
[1725545594390,3.21406501,2390.0,2389.2,0.41855]
[1725545594591,3.2078,2389.7,2389.1,5.61455623]
[1725545594885,3.2078,2389.7,2389.3,0.41854]
[1725545595280,3.2078,2389.7,2389.1,5.61455623]
[1725545595482,3.2078,2389.7,2389.1,2.40675623]
[1725545595684,3.2078,2389.7,2389.2,0.41856]
[1725545595883,3.2078,2389.4,2389.1,2.1961]
[1725545596381,4.01,2389.2,2388.9,0.00331152]
[1725545596581,7.2178,2389.6,2388.9,0.21497421]
[1725545596779,7.2178,2389.6,2388.9,0.00331152]
[1725545597177,3.2078,2389.3,2389.1,0.41858]
[1725545597378,4.01,2389.6,2389.2,0.41855]
[1725545597379,7.2178,2389.6,2389.2,0.41855]
[1725545597587,7.2178,2389.6,2388.9,0.00331152]
[1725545597588,7.2178,2389.6,2389.1,0.20534065]
[1725545597785,3.2078,2389.6,2388.9,0.00331152]
[1725545597986,7.2178,2389.9,2389.0,8.7238254]
[1725545598181,7.2178,2389.9,2389.4,0.41852]
[1725545598382,3.2078,2389.6,2389.3,0.41854]
[1725545598584,0.00626501,2390.0,2389.7,0.41847]
[1725545598781,3.2078,2389.8,2389.6,0.41849]
[1725545598983,0.00626501,2390.0,2389.7,0.41848]
[1725545599185,0.00626501,2390.0,2389.3,3.2078]
[1725545599385,0.00626501,2390.0,2389.7,0.41847]
[1725545599584,0.00626501,2390.0,2389.3,4.25417]
[1725545599795,0.00626501,2390.0,2389.7,0.41847]
[1725545599987,0.00626501,2390.0,2389.6,3.2078]
[1725545600286,4.01,2390.7,2390.4,0.41835]
[1725545600681,1.25255705,2391.9,2390.4,0.41835]
[1725545600682,3.2078,2391.1,2390.5,4.1832]
[1725545600888,3.2078,2391.3,2390.8,0.41828]
[1725545601094,3.2078,2391.3,2390.5,14.87370792]
[1725545601095,3.2078,2391.4,2390.9,0.20874156]
[1725545601286,0.00627825,2391.3,2390.8,0.00627825]
[1725545601479,0.00627825,2391.3,2390.9,3.2078]
[1725545601682,0.00627825,2391.3,2391.0,3.62604]
[1725545601885,0.00627825,2391.3,2391.0,3.83344173]
[1725545602087,0.00627825,2391.3,2391.0,0.41824]
[1725545602689,0.00627825,2391.3,2390.8,0.21656899]
[1725545603294,0.00627825,2391.3,2390.8,0.63483899]
[1725545603588,0.00627825,2391.3,2391.0,0.41824]
[1725545603780,0.00627825,2391.3,2391.2,0.41822]
[1725545603986,0.00627825,2391.3,2390.9,4.1824]
[1725545604181,0.00627825,2391.3,2391.2,0.41822]
[1725545604385,0.00627825,2391.3,2390.9,0.41826]
[1725545604591,0.00627825,2391.3,2390.8,0.21656899]
[1725545604892,3.2078,2391.0,2390.8,0.00627825]
[1725545605287,4.1824,2390.9,2390.8,0.00627825]
[1725545605481,4.01,2391.0,2390.8,0.00627825]
[1725545605791,8.1924,2391.0,2390.8,0.00627825]
[1725545605990,4.01,2391.0,2390.8,0.00627825]
[1725545606188,4.1824,2390.9,2390.8,0.00627825]
[1725545606390,4.1824,2390.9,2390.8,0.0423496]
[1725545606891,10.1824,2390.9,2390.8,0.0423496]
[1725545607091,10.1824,2390.9,2389.8,1.08119181]
[1725545607306,3.2078,2390.2,2390.0,0.41841]
[1725545607588,3.2078,2390.2,2389.7,0.41847]
[1725545607788,3.2078,2389.9,2389.6,0.41848]
[1725545608099,3.2078,2389.9,2389.2,2.351]
[1725545608390,3.2078,2389.9,2389.4,0.41852]
[1725545608888,3.2078,2389.9,2389.2,2.351]
[1725545609089,3.2078,2389.6,2389.2,2.98015566]
[1725545609289,3.2078,2389.6,2389.2,2.98014566]
[1725545609484,3.2078,2389.6,2389.2,2.351]
[1725545609888,3.2078,2389.9,2389.3,0.41854]
[1725545610089,3.2078,2389.9,2389.2,2.76956]
[1725545610290,3.2078,2389.6,2389.3,0.41854]
[1725545610688,3.2078,2389.6,2389.3,0.41855]
[1725545611188,3.2078,2389.9,2389.2,2.351]
[1725545611397,0.00627825,2390.0,2389.2,2.76955]
[1725545611398,3.2078,2389.6,2389.2,2.76955]
[1725545611690,3.2078,2389.6,2389.2,2.351]
[1725545611991,3.2078,2389.9,2389.4,0.41853]
[1725545612191,3.2078,2389.9,2389.3,0.41854]
[1725545612387,3.2078,2389.9,2389.4,0.41852]
[1725545612587,3.2078,2389.9,2389.3,0.41854]
[1725545612986,3.2078,2389.9,2389.2,2.351]
[1725545613189,3.2078,2389.9,2389.8,0.41846]
[1725545613392,0.00627825,2390.0,2389.3,5.45006856]
[1725545613688,3.2078,2390.7,2390.2,0.41838]
[1725545613889,3.2078,2390.7,2390.1,0.4184]
[1725545614084,3.2078,2390.3,2390.1,0.4184]
[1725545614288,1.04558,2391.2,2389.8,5.41655251]
[1725545614289,3.2078,2391.0,2389.8,5.41655251]
[1725545614494,3.2078,2391.0,2390.6,0.41831]
[1725545614693,3.21407825,2391.0,2390.6,0.00627825]
[1725545614993,3.2078,2390.7,2390.6,0.00627825]
[1725545615196,0.00627825,2391.0,2390.6,0.42459825]
[1725545615396,0.00627825,2391.0,2390.7,0.4183]
[1725545615591,0.00627825,2391.0,2390.6,0.00627825]
[1725545615792,0.00627825,2391.0,2390.7,0.41829]
[1725545615992,0.00627825,2391.0,2390.7,0.4183]
[1725545616295,0.00627825,2391.0,2390.6,0.00627825]
[1725545616488,3.2078,2390.8,2390.6,0.00627825]
[1725545617797,7.391,2390.8,2390.6,0.00627825]
[1725545618096,0.41834,2390.6,2389.7,0.41848]
[1725545618290,3.2078,2390.3,2389.6,3.2078]
[1725545618489,3.2078,2390.3,2389.9,0.41844]
[1725545618690,3.2078,2390.3,2389.6,3.2078]
[1725545618893,3.2078,2390.2,2389.9,0.41843]
[1725545619092,3.2078,2390.3,2389.9,0.41843]
[1725545619296,3.2078,2390.3,2389.7,5.45648]
[1725545619592,3.2078,2390.3,2389.8,0.41845]
[1725545619988,3.2078,2390.3,2389.9,0.41844]
[1725545620192,3.2078,2390.3,2389.8,0.41845]
[1725545620499,4.01,2390.5,2390.0,0.41841]
[1725545620702,4.01,2390.5,2389.6,8.6905381]
[1725545620703,4.01,2390.1,2389.6,5.4827381]
[1725545620895,3.2078,2389.7,2389.1,0.63022261]
[1725545621094,0.00627825,2389.6,2389.1,0.41857]
[1725545621394,0.00627825,2389.6,2388.9,3.21111152]
[1725545621395,4.01,2389.3,2389.0,0.21151753]
[1725545621590,4.01,2389.3,2388.9,0.00331152]
[1725545621591,7.2178,2389.3,2388.9,0.00331152]
[1725545621791,7.2178,2389.3,2388.1,2.3131]
[1725545621792,7.2178,2389.0,2388.1,2.3131]
[1725545621988,3.2078,2388.7,2388.1,2.3131]
[1725545622189,3.2078,2388.4,2387.8,0.2687796]
[1725545622393,3.2078,2388.4,2387.6,6.50089181]
[1725545622394,4.01,2388.6,2387.6,2.2119]
[1725545622697,0.00627825,2388.3,2387.9,5.54150369]
[1725545622896,0.00627825,2388.3,2387.7,14.26799759]
[1725545623196,0.00627825,2388.3,2387.6,5.83853]
[1725545623493,0.00627825,2388.3,2387.7,18.66847507]
[1725545623705,3.2078,2389.3,2387.9,3.2078]
[1725545623997,4.01,2389.4,2388.8,0.41863]
[1725545624197,4.01,2389.4,2388.8,0.21160123]
[1725545624391,4.01,2389.4,2388.8,3.2078]
[1725545624593,4.01,2389.4,2388.8,3.83801031]
[1725545624795,4.01,2389.4,2388.9,0.00627825]
[1725545624796,0.00627825,2389.3,2388.9,0.00627825]
[1725545625297,0.00627825,2389.3,2388.9,4.19187825]
[1725545625494,5.5438,2390.3,2389.4,0.41853]
[1725545625696,7.2178,2390.3,2389.1,3.2078]
[1725545625994,3.2078,2390.4,2389.5,14.21828244]
[1725545626197,3.2078,2390.4,2389.2,14.42170964]
[1725545626198,3.2078,2390.1,2389.2,14.42170964]
[1725545626503,0.00627825,2389.9,2389.6,5.35330766]
[1725545626686,0.00627825,2389.9,2389.7,0.41846]
[1725545626997,0.00627825,2389.9,2389.8,4.1848]
[1725545627590,0.00627825,2389.9,2389.4,2.32867825]
[1725545627799,0.00627825,2389.9,2389.6,3.2078]
[1725545627995,0.00627825,2389.9,2389.6,3.62628]
[1725545628200,0.00627825,2389.9,2389.7,4.60328]
[1725545628597,0.00627825,2389.9,2389.8,4.1848]
[1725545628795,0.00627825,2389.9,2389.8,4.60326]
[1725545628994,3.2078,2390.4,2390.0,0.41842]
[1725545629300,7.2178,2390.9,2390.2,0.41838]
[1725545629490,3.2078,2390.6,2390.3,0.41837]
[1725545629696,3.2078,2391.0,2390.1,3.2078]
[1725545629894,0.00627825,2390.8,2390.2,3.2078]
[1725545630100,0.00627825,2390.8,2390.2,3.62618]
[1725545630299,0.00627825,2390.8,2390.3,0.41837]
[1725545630499,0.00627825,2390.8,2390.7,0.4183]
[1725545630698,3.2078,2391.8,2390.7,6.0]
[1725545630893,3.2078,2391.5,2390.8,3.2078]
[1725545631105,3.2078,2391.5,2390.8,0.41828]
[1725545631493,3.2078,2391.5,2390.9,0.41826]
[1725545631700,0.00627825,2391.2,2390.8,0.41827]
[1725545631997,3.2078,2391.5,2391.1,3.2078]
[1725545632194,3.2078,2391.9,2391.3,0.41819]
[1725545632394,44.94896,2392.2,2391.3,0.41818]
[1725545632395,3.2078,2391.8,2391.3,0.41818]
[1725545632911,3.2078,2391.8,2391.1,3.2078]
[1725545632912,3.2078,2391.8,2391.4,0.41818]
[1725545633094,3.21407825,2391.8,2391.3,0.41819]
[1725545633300,0.00627825,2391.8,2391.5,0.41816]
[1725545633498,0.00627825,2391.8,2391.6,0.41813]
[1725545633695,0.00627825,2391.8,2391.5,2.72435]
[1725545633900,0.00627825,2391.8,2391.5,2.3062]
[1725545634098,0.00627825,2391.8,2391.6,0.41814]
[1725545634400,0.00627825,2391.8,2391.5,2.72436]
[1725545634999,0.00627825,2391.8,2391.7,0.41813]
[1725545635200,40.93896,2392.2,2391.7,6.41813]
[1725545635404,40.93896,2392.2,2391.8,4.5992]
[1725545635606,40.93896,2392.2,2392.1,0.41806]
[1725545636000,40.93896,2392.2,2392.1,10.59806]
[1725545636606,40.93896,2392.2,2392.1,4.59806]
[1725545637003,40.93896,2392.2,2392.1,4.18]
[1725545637202,33.62076,2392.2,2392.1,13.80586]
[1725545637401,33.41117023,2392.2,2392.1,13.80586]
[1725545637603,33.41117023,2392.2,2392.1,14.01277732]
[1725545638511,22.53267023,2392.2,2392.1,13.80586]
[1725545638708,22.53267023,2392.2,2392.1,14.01972057]
[1725545639105,22.53267023,2392.2,2392.1,4.81192057]
[1725545639409,22.33267023,2392.2,2392.1,10.59806]
[1725545640008,22.33267023,2392.2,2392.1,10.80439174]
[1725545640803,22.33267023,2392.2,2392.1,4.38633174]
[1725545641413,22.33267023,2392.2,2392.1,0.20633174]
[1725545641707,22.33267023,2392.2,2392.1,13.80586]
[1725545641910,22.33267023,2392.2,2392.1,14.01427433]
[1725545643914,22.33267023,2392.2,2392.1,19.37203119]
[1725545644615,22.33267023,2392.2,2392.1,8.01427433]
[1725545644820,22.33267023,2392.2,2392.1,14.01427433]
[1725545645207,22.33267023,2392.2,2392.1,23.02344275]
[1725545645402,22.33267023,2392.2,2392.1,24.06859275]
[1725545645607,21.55205379,2392.2,2392.1,24.06859275]
[1725545645807,21.55205379,2392.2,2392.1,28.46660667]
[1725545646016,21.55205379,2392.2,2392.1,22.46660667]
[1725545646215,21.55205379,2392.2,2392.1,4.38841433]
[1725545646414,21.55205379,2392.2,2392.1,0.20841433]
[1725545646619,21.55205379,2392.2,2391.9,0.00627825]
[1725545646913,2.3471,2392.1,2391.9,0.00627825]
[1725545647212,3.2078,2392.0,2391.9,0.00627825]
[1725545647606,2.3471,2392.1,2391.9,0.00627825]
[1725545647911,3.2078,2392.0,2391.9,0.00627825]
[1725545648113,2.3471,2392.1,2391.9,0.00627825]
[1725545648516,2.3471,2392.1,2391.9,0.42436825]
[1725545648709,2.3471,2392.1,2391.9,0.00627825]
[1725545649707,2.3471,2392.1,2392.0,0.41808]
[1725545650010,2.3471,2392.1,2391.9,0.00627825]
[1725545650216,2.3471,2392.1,2391.0,2.3284]
[1725545650217,7.3886,2392.0,2390.9,5.3659]
[1725545650406,3.2078,2392.0,2391.2,3.2078]
[1725545650602,2.3471,2392.1,2391.2,8.70270387]
[1725545650603,3.2078,2391.3,2391.2,8.70270387]
[1725545650805,3.2078,2391.3,2391.0,8.70270387]
[1725545651005,3.2078,2391.3,2390.9,0.2061457]
[1725545651006,3.2078,2391.3,2390.9,0.6244057]
[1725545651202,3.2078,2391.3,2390.9,0.00627825]
[1725545651406,2.1432,2391.2,2390.9,0.21451404]
[1725545653520,2.1432,2391.2,2391.0,11.90954999]
[1725545653708,2.1432,2391.2,2391.0,3.62605]
[1725545653913,2.1432,2391.2,2390.9,3.84057404]
[1725545654108,2.1432,2391.2,2391.0,0.41825]
[1725545654308,2.1432,2391.2,2391.1,0.41823]
[1725545654513,2.1432,2391.2,2390.9,3.42231404]
[1725545654708,2.193,2391.9,2390.9,7.60471404]
[1725545654917,4.6178,2392.1,2391.8,3.2078]
[1725545655111,4.6178,2392.1,2391.6,3.62594]
[1725545655320,4.6178,2392.1,2391.6,3.2078]
[1725545656122,4.6178,2392.1,2391.6,3.62594]
[1725545656622,4.6178,2392.1,2391.6,3.2078]
[1725545656822,4.6178,2392.1,2391.5,0.41815]
[1725545657014,3.2078,2391.8,2391.0,2.2649]
[1725545657211,8.24367,2392.1,2391.1,14.28463865]
[1725545657416,8.24367,2392.1,2391.2,0.41821]
[1725545657417,7.8256,2392.1,2391.2,0.41821]
[1725545657724,3.2078,2391.8,2391.2,0.41821]
[1725545658417,3.2078,2391.8,2391.1,0.41823]
[1725545658618,3.2078,2391.8,2390.9,3.42231404]
[1725545658816,2.3687,2391.7,2391.1,0.41822]
[1725545659018,2.3687,2391.7,2391.2,0.41821]
[1725545659321,2.3687,2391.7,2390.9,0.21451404]
[1725545659322,5.5765,2391.7,2390.9,0.21451404]
[1725545659832,2.3687,2391.7,2391.3,0.41818]
[1725545660023,2.3687,2391.7,2391.2,0.41821]
[1725545660213,5.5765,2391.7,2390.9,0.21451404]
[1725545660413,5.5765,2391.7,2391.1,0.41822]
[1725545660620,2.3687,2391.7,2390.9,0.21451404]
[1725545660819,2.3687,2391.7,2391.0,3.2078]
[1725545661019,2.3687,2391.7,2391.3,0.41819]
[1725545661224,2.3687,2391.7,2391.0,3.2078]
[1725545661520,2.3687,2391.7,2391.2,0.4182]
[1725545661723,2.3687,2391.7,2391.4,0.41816]
[1725545661917,2.3687,2391.7,2391.0,3.2078]
[1725545662422,2.3687,2391.7,2391.4,0.41817]
[1725545662624,2.3687,2391.7,2391.5,0.41816]
[1725545662827,2.3687,2391.7,2391.4,0.41817]
[1725545663221,7.8256,2392.1,2391.6,0.41814]
[1725545663527,7.8256,2392.1,2391.7,0.41812]
[1725545663826,7.8256,2392.1,2391.3,3.2078]
[1725545663827,7.8256,2392.1,2391.5,0.41815]
[1725545664120,7.8256,2392.1,2391.6,0.41814]
[1725545664323,7.8256,2392.1,2391.3,3.2078]
[1725545664622,4.6178,2392.1,2391.8,0.4181]
[1725545664925,4.6178,2392.1,2391.9,0.41809]
[1725545665624,4.6178,2392.1,2392.0,0.41808]
[1725545666317,4.6178,2392.1,2391.5,1.04541]
[1725545666318,21.55205379,2392.2,2392.1,0.41806]
[1725545666520,21.55205379,2392.2,2392.1,0.62210749]
[1725545666716,21.55205379,2392.2,2392.1,0.20404749]
[1725545667025,21.55205379,2392.2,2392.0,0.41807]
[1725545667222,21.55205379,2392.2,2391.6,3.2078]
[1725545667223,21.55205379,2392.2,2392.1,0.20599219]
[1725545667428,25.73205379,2392.2,2391.6,3.2078]
[1725545667624,2.2947,2392.1,2391.7,0.41812]
[1725545667820,5.5025,2392.1,2391.3,2.2557]
[1725545668023,2.1554,2392.0,2391.6,0.41814]
[1725545669122,2.1554,2392.0,2391.3,0.26532082]
[1725545669123,3.2078,2391.7,2391.3,0.26532082]
[1725545669421,5.3632,2392.0,2391.3,0.41819]
[1725545669623,5.3632,2392.0,2391.4,0.41818]
[1725545670018,5.3632,2392.0,2391.5,0.41816]
[1725545670215,2.1554,2392.0,2391.1,3.2078]
[1725545670420,2.1554,2392.0,2391.6,0.41813]
[1725545670621,2.1554,2392.0,2391.8,0.4181]
[1725545670826,2.1554,2392.0,2391.7,0.41812]
[1725545671020,2.1554,2392.0,2391.9,0.41809]
[1725545671219,2.1554,2392.0,2391.8,0.4181]
[1725545671426,2.1554,2392.0,2391.9,0.41809]
[1725545671630,2.1554,2392.0,2391.8,0.4181]
[1725545671830,2.1554,2392.0,2391.9,0.41809]
[1725545672625,2.2947,2392.1,2392.0,0.41808]
[1725545673132,21.55205379,2392.2,2391.7,3.47197187]
[1725545673331,21.55205379,2392.2,2392.0,0.41806]
[1725545673523,21.55205379,2392.2,2392.1,0.41806]
[1725545673728,21.55205379,2392.2,2392.1,0.62918388]
[1725545674029,21.55205379,2392.2,2392.1,0.21112388]
[1725545674228,21.55205379,2392.2,2391.7,3.47197187]
[1725545674528,21.55205379,2392.2,2391.7,4.55316368]
[1725545674734,21.55205379,2392.2,2392.1,0.41806]
[1725545674925,21.55205379,2392.2,2391.6,1.08119181]
[1725545675131,3.2078,2391.7,2391.1,0.41823]
[1725545675438,4.5049,2391.6,2391.1,0.41823]
[1725545675821,4.5049,2391.6,2391.0,3.2078]
[1725545675822,4.5049,2391.6,2391.2,0.41821]
[1725545676025,4.5049,2391.6,2391.0,3.2078]
[1725545676228,4.5049,2391.6,2391.3,0.41819]
[1725545676825,4.5049,2391.6,2391.2,0.41821]
[1725545677022,4.5049,2391.6,2391.1,0.41822]
[1725545677235,4.5049,2391.6,2391.2,0.41821]
[1725545677430,4.5049,2391.6,2391.1,0.41823]
[1725545678534,4.5049,2391.6,2391.0,4.28899181]
[1725545678730,4.5049,2391.6,2391.1,0.41822]
[1725545679031,4.5049,2391.6,2391.2,0.41822]
[1725545679429,4.5049,2391.6,2391.3,0.41818]
[1725545679627,4.5049,2391.6,2391.3,0.41819]
[1725545680234,4.5049,2391.6,2391.2,0.4182]
[1725545680436,4.5049,2391.6,2391.0,4.28899181]
[1725545680942,3.2078,2391.3,2390.9,0.00627825]
[1725545681140,3.2078,2391.0,2390.3,1.08119181]
[1725545681331,0.4183,2390.8,2390.2,4.28899181]
[1725545681529,4.531,2390.9,2389.9,3.47298353]
[1725545681530,5.5346,2390.7,2389.9,3.47298353]
[1725545682036,5.5346,2390.7,2390.2,0.41838]
[1725545682237,3.2078,2390.4,2390.2,0.41838]
[1725545682434,0.00627825,2390.5,2390.1,0.00627825]
[1725545683136,0.00627825,2390.5,2390.4,0.41836]
[1725545683438,0.00627825,2390.5,2390.3,0.41836]
[1725545683645,0.00627825,2390.5,2390.4,0.41836]
[1725545683843,0.00325933,2390.5,2390.4,0.41836]
[1725545684039,3.21105933,2390.5,2390.1,1.08747006]
[1725545684338,0.00325933,2390.5,2390.1,0.00627825]
[1725545684542,0.00325933,2390.5,2390.4,0.41836]
[1725545685244,3.2078,2391.6,2390.8,0.41827]
[1725545685440,7.8447,2391.5,2390.7,0.4183]
[1725545685640,3.2078,2391.0,2390.5,5.84703]
[1725545686038,3.62605,2391.0,2390.2,1.08119181]
[1725545686342,0.00627825,2390.8,2390.2,0.41838]
[1725545686547,0.00627825,2390.8,2390.3,0.41837]
[1725545686749,0.00627825,2390.8,2390.2,0.41838]
[1725545687047,0.00627825,2390.8,2390.1,3.63247825]
[1725545687246,0.00627825,2390.8,2390.1,3.21407825]
[1725545687741,0.00627825,2390.8,2390.2,0.41837]
[1725545687941,0.00627825,2390.8,2390.3,0.41837]
[1725545688152,0.00627825,2390.8,2390.4,0.41835]
[1725545688336,0.00627825,2390.8,2390.4,0.41834]
[1725545688641,0.00627825,2390.8,2390.2,1.08119181]
[1725545688642,0.00627825,2390.8,2390.5,0.41833]
[1725545688844,0.00627825,2390.8,2390.7,0.4183]
[1725545689347,0.00627825,2390.8,2390.7,4.6007]
[1725545689938,3.2078,2391.3,2390.8,1.04572]
[1725545690139,2.3261,2391.5,2391.2,0.4182]
[1725545690443,2.3261,2391.5,2391.3,0.21096172]
[1725545690647,3.2078,2391.9,2391.4,0.41818]
[1725545690946,3.2078,2391.9,2391.4,0.00627825]
[1725545690947,3.21187916,2391.9,2391.4,0.00627825]
[1725545691445,0.00407916,2391.9,2391.4,0.00627825]
[1725545691645,3.21187916,2391.9,2391.4,0.00627825]
[1725545691841,0.00407916,2391.9,2391.4,0.00627825]
[1725545692452,0.00407916,2391.9,2391.6,0.41813]
[1725545692638,0.00407916,2391.9,2391.7,0.41812]
[1725545692843,0.00407916,2391.9,2391.6,0.41813]
[1725545693043,0.00407916,2391.9,2391.5,3.2078]
[1725545693240,0.00407916,2391.9,2391.5,3.62595]
[1725545693544,0.00407916,2391.9,2391.4,0.00627825]
[1725545694048,3.21187916,2391.9,2391.4,0.00627825]
[1725545694351,0.00407916,2391.9,2391.4,0.00627825]
[1725545694543,3.62997916,2391.9,2391.4,0.00627825]
[1725545694745,5.39587916,2391.9,2391.4,0.00627825]
[1725545695948,5.39587916,2391.9,2391.5,0.41815]
[1725545696253,2.18807916,2391.9,2391.5,0.41815]
[1725545696551,0.00407916,2391.9,2391.4,0.42444825]
[1725545696750,0.00407916,2391.9,2391.4,0.00627825]
[1725545697548,0.00407916,2391.9,2391.4,0.42445825]
[1725545697749,0.00407916,2391.9,2391.4,0.00627825]
[1725545698143,0.00407916,2391.9,2391.4,0.42444825]
[1725545699147,0.00407916,2391.9,2391.4,0.00627825]
[1725545699349,3.21187916,2391.9,2391.4,0.00627825]
[1725545699553,0.41812,2391.8,2391.4,0.00627825]
[1725545699754,3.62595,2391.6,2391.4,0.00627825]
[1725545700052,7.0678,2391.7,2391.4,0.00627825]
[1725545700252,3.86,2391.4,2390.6,2.70297952]
[1725545700447,3.86,2391.4,2390.6,4.28899181]
[1725545700651,3.86,2391.4,2390.7,3.2078]
[1725545700954,3.62601,2391.3,2390.6,0.41831]
[1725545701141,2.2849,2391.2,2390.7,0.00627825]
[1725545701555,2.2849,2391.2,2390.8,0.41828]
[1725545701754,2.2849,2391.2,2390.9,0.20576364]
[1725545701952,2.2849,2391.2,2390.9,0.41826]
[1725545702150,2.2509,2391.5,2391.1,0.41823]
[1725545702349,2.2849,2391.7,2391.1,3.2078]
[1725545702547,3.2078,2391.6,2391.2,0.2101378]
[1725545702743,2.2849,2391.7,2391.0,1.08119181]
[1725545702952,2.2849,2391.7,2391.0,1.29465451]
[1725545703160,2.2849,2391.7,2391.4,0.41818]
[1725545703455,2.2849,2391.7,2391.2,0.4182]
[1725545703652,3.2078,2391.5,2391.0,1.29465451]
[1725545703956,2.1445,2391.4,2391.0,0.2134627]
[1725545704149,2.1445,2391.4,2390.7,0.00627825]
[1725545704353,2.1445,2391.4,2390.8,0.41828]
[1725545704551,2.1445,2391.4,2390.9,0.20980322]
[1725545704750,2.56269,2391.4,2390.9,0.20980322]
[1725545704950,2.1445,2391.4,2390.9,0.41825]
[1725545705156,2.1445,2391.4,2391.0,0.41824]
[1725545705351,2.1445,2391.4,2390.7,0.42456825]
[1725545705755,2.1445,2391.4,2390.7,0.00627825]
[1725545705961,2.56269,2391.4,2390.7,0.42457825]
[1725545706260,3.2078,2390.9,2390.7,0.00627825]
[1725545706561,3.2078,2391.2,2390.7,0.00627825]
[1725545706751,3.2078,2390.8,2390.7,0.00627825]
[1725545707159,7.3902,2390.8,2390.7,0.00627825]
[1725545707360,13.3902,2390.8,2390.7,0.00627825]
[1725545707549,4.1824,2390.8,2390.7,0.00627825]
[1725545708161,2.1947,2391.0,2390.7,0.00627825]
[1725545708359,2.1947,2391.0,2390.8,0.41828]
[1725545708663,3.2078,2391.1,2390.9,0.20541813]
[1725545708855,3.2078,2391.1,2390.8,0.41828]
[1725545709056,2.1445,2391.4,2390.9,0.41827]
[1725545709260,5.4025,2391.5,2391.1,0.41823]
[1725545709453,5.4025,2391.5,2391.1,0.6279987]
[1725545709454,2.1947,2391.5,2391.1,0.6279987]
[1725545709654,2.1947,2391.5,2391.1,0.2097687]
[1725545709957,0.00407916,2391.9,2391.6,0.41814]
[1725545710159,0.00407916,2391.9,2391.6,3.2078]
[1725545710451,0.00407916,2391.9,2391.3,2.2337]
[1725545710652,0.00407916,2391.9,2391.3,2.65189]
[1725545711062,0.00407916,2391.9,2391.4,0.41818]
[1725545711264,0.00407916,2391.9,2391.5,0.41816]
[1725545711460,0.00407916,2391.9,2391.4,3.62597]
[1725545711664,0.00407916,2391.9,2391.5,3.62596]
[1725545711861,0.00407916,2391.9,2391.5,3.2078]
[1725545712261,0.00407916,2391.9,2391.3,2.2337]
[1725545712461,3.62997916,2391.9,2391.1,4.49363604]
[1725545712760,3.2078,2391.3,2390.7,4.29527006]
[1725545713060,3.62599,2391.4,2390.7,0.00627825]
[1725545713258,4.5574,2391.2,2390.7,0.00627825]
[1725545713854,4.5574,2391.2,2390.7,3.21407825]
[1725545714367,4.5574,2391.2,2390.7,0.42456825]
[1725545714564,4.5574,2391.2,2390.7,0.00627825]
[1725545715161,3.2078,2391.7,2390.9,3.2078]
[1725545715354,7.7652,2391.7,2391.0,3.2078]
[1725545715557,7.7652,2391.7,2391.1,3.62603]
[1725545715763,7.7652,2391.7,2391.1,3.2078]
[1725545715962,7.7652,2391.7,2391.0,2.301]
[1725545716159,3.2078,2391.4,2390.9,0.21207406]
[1725545716375,3.2078,2391.4,2390.7,0.00627825]